[Event "Titled Tuesday Blitz June 14 Early 2022"]
[White "Samant Aditya S"]
[Black "Bluebaum, Matthias"]
[WhiteFideId "35080580"]
[BlackFideId "24651516"]
[WhiteElo "1968"]
[BlackElo "2556"]
[Result "0-1"]
[Round "02"]
[TimeControl "180+1"]
[Date "2022.06.14"]
[WhiteClock "0:00:20"]
[BlackClock "0:01:56"]

1. d4 {[%clk 0:03:00]}  Nf6 {[%clk 0:02:59]} 2. c4 {[%clk 0:03:01]}  e6 {[%clk 0:02:59]} 3. Nc3 {[%clk 0:03:01]}  d5 {[%clk 0:03:00]} 4. Nf3 {[%clk 0:03:00]}  Bb4 {[%clk 0:03:00]} 5. Qa4+ {[%clk 0:02:59]}  Nc6 {[%clk 0:02:59]} 6. e3 {[%clk 0:02:59]}  O-O {[%clk 0:03:00]} 7. Bd2 {[%clk 0:02:54]}  Qe8 {[%clk 0:02:56]} 8. Qc2 {[%clk 0:02:42]}  dxc4 {[%clk 0:02:55]} 9. Bxc4 {[%clk 0:02:42]}  e5 {[%clk 0:02:56]} 10. O-O {[%clk 0:02:27]}  Bg4 {[%clk 0:02:54]} 11. Nxe5 {[%clk 0:02:07]}  Nxe5 {[%clk 0:02:53]} 12. dxe5 {[%clk 0:02:08]}  Qxe5 {[%clk 0:02:54]} 13. f4 {[%clk 0:01:35]}  Qe7 {[%clk 0:02:51]} 14. Kh1 {[%clk 0:01:34]}  Rad8 {[%clk 0:02:46]} 15. a3 {[%clk 0:01:28]}  Bxc3 {[%clk 0:02:38]} 16. Bxc3 {[%clk 0:01:29]}  Ne4 {[%clk 0:02:38]} 17. Be5 {[%clk 0:01:11]}  Bf5 {[%clk 0:02:38]} 18. Qe2 {[%clk 0:00:40]}  Kh8 {[%clk 0:02:28]} 19. b4 {[%clk 0:00:30]}  Qh4 {[%clk 0:02:18]} 20. Kg1 {[%clk 0:00:25]}  Nd2 {[%clk 0:01:55]} 21. Rfd1 {[%clk 0:00:23]}  Bg4 {[%clk 0:01:55]} 22. Qe1 {[%clk 0:00:19]}  Qxe1+ {[%clk 0:01:55]} 23. Rxe1 {[%clk 0:00:20]}  Nxc4 {[%clk 0:01:56]} 0-1


[Site "https://www.chess.com"]

[Event "Titled Tuesday Blitz June 14 Early 2022"]
[White "Sarana, Alexey"]
[Black "Samunenkov, Ihor"]
[WhiteFideId "24133795"]
[BlackFideId "14187086"]
[WhiteElo "2666"]
[BlackElo "2409"]
[Result "1/2-1/2"]
[Round "02"]
[TimeControl "180+1"]
[Date "2022.06.14"]
[WhiteClock "0:00:11"]
[BlackClock "0:00:07"]

1. d4 {[%clk 0:02:58]}  d5 {[%clk 0:02:59]} 2. c4 {[%clk 0:02:58]}  e6 {[%clk 0:03:00]} 3. Nc3 {[%clk 0:02:59]}  a6 {[%clk 0:03:00]} 4. cxd5 {[%clk 0:02:58]}  exd5 {[%clk 0:03:00]} 5. Nf3 {[%clk 0:02:58]}  h6 {[%clk 0:02:59]} 6. Qc2 {[%clk 0:02:55]}  Nf6 {[%clk 0:02:55]} 7. Bf4 {[%clk 0:02:56]}  Bd6 {[%clk 0:02:55]} 8. Bxd6 {[%clk 0:02:56]}  Qxd6 {[%clk 0:02:55]} 9. e3 {[%clk 0:02:56]}  Nc6 {[%clk 0:02:50]} 10. a3 {[%clk 0:02:52]}  Ne7 {[%clk 0:02:49]} 11. Bd3 {[%clk 0:02:52]}  g6 {[%clk 0:02:48]} 12. O-O {[%clk 0:02:39]}  O-O {[%clk 0:02:43]} 13. Rac1 {[%clk 0:02:29]}  Bf5 {[%clk 0:02:38]} 14. Bxf5 {[%clk 0:02:29]}  Nxf5 {[%clk 0:02:39]} 15. Na4 {[%clk 0:02:29]}  c6 {[%clk 0:02:34]} 16. Nc5 {[%clk 0:02:30]}  Qe7 {[%clk 0:02:33]} 17. Ne5 {[%clk 0:02:30]}  Nd6 {[%clk 0:02:32]} 18. h3 {[%clk 0:02:19]}  Nfe4 {[%clk 0:02:25]} 19. Ncd3 {[%clk 0:02:18]}  Rac8 {[%clk 0:02:21]} 20. Rfe1 {[%clk 0:02:15]}  Rfe8 {[%clk 0:02:19]} 21. f3 {[%clk 0:01:59]}  Ng5 {[%clk 0:02:05]} 22. Nf4 {[%clk 0:01:57]}  Ne6 {[%clk 0:01:52]} 23. Nfd3 {[%clk 0:01:55]}  Kg7 {[%clk 0:01:36]} 24. Qf2 {[%clk 0:01:46]}  f6 {[%clk 0:01:10]} 25. Ng4 {[%clk 0:01:45]}  h5 {[%clk 0:01:11]} 26. Nh2 {[%clk 0:01:45]}  b6 {[%clk 0:00:54]} 27. Nf1 {[%clk 0:01:33]}  c5 {[%clk 0:00:54]} 28. dxc5 {[%clk 0:01:29]}  bxc5 {[%clk 0:00:54]} 29. Rcd1 {[%clk 0:01:30]}  Rb8 {[%clk 0:00:53]} 30. Nf4 {[%clk 0:01:29]}  Nxf4 {[%clk 0:00:28]} 31. exf4 {[%clk 0:01:29]}  Qb7 {[%clk 0:00:28]} 32. Qxc5 {[%clk 0:01:29]}  Nc4 {[%clk 0:00:26]} 33. Rxe8 {[%clk 0:01:15]}  Rxe8 {[%clk 0:00:27]} 34. Qxd5 {[%clk 0:01:14]}  Qxd5 {[%clk 0:00:27]} 35. Rxd5 {[%clk 0:01:15]}  Re1 {[%clk 0:00:27]} 36. Rd7+ {[%clk 0:01:14]}  Kh6 {[%clk 0:00:27]} 37. Kf2 {[%clk 0:01:12]}  Rb1 {[%clk 0:00:27]} 38. b4 {[%clk 0:01:04]}  Nxa3 {[%clk 0:00:27]} 39. Rd6 {[%clk 0:00:58]}  Kg7 {[%clk 0:00:14]} 40. Ne3 {[%clk 0:00:54]}  Rxb4 {[%clk 0:00:13]} 41. Rxa6 {[%clk 0:00:50]}  Nb5 {[%clk 0:00:13]} 42. Rb6 {[%clk 0:00:48]}  Rb3 {[%clk 0:00:13]} 43. Nd5 {[%clk 0:00:47]}  Nd4 {[%clk 0:00:10]} 44. Rxf6 {[%clk 0:00:40]}  Rb2+ {[%clk 0:00:10]} 45. Kg1 {[%clk 0:00:41]}  Ne2+ {[%clk 0:00:06]} 46. Kh2 {[%clk 0:00:39]}  h4 {[%clk 0:00:07]} 47. Re6 {[%clk 0:00:30]}  Nd4 {[%clk 0:00:04]} 48. Re7+ {[%clk 0:00:27]}  Kf8 {[%clk 0:00:03]} 49. Re3 {[%clk 0:00:27]}  Rb1 {[%clk 0:00:02]} 50. Nc3 {[%clk 0:00:16]}  Rc1 {[%clk 0:00:03]} 51. Rd3 {[%clk 0:00:15]}  Nf5 {[%clk 0:00:03]} 52. Ne4 {[%clk 0:00:15]}  Kg7 {[%clk 0:00:02]} 53. Rd7+ {[%clk 0:00:15]}  Kf8 {[%clk 0:00:02]} 54. Rd8+ {[%clk 0:00:13]}  Ke7 {[%clk 0:00:02]} 55. Rd3 {[%clk 0:00:14]}  Kf8 {[%clk 0:00:02]} 56. Ra3 {[%clk 0:00:14]}  Rb1 {[%clk 0:00:03]} 57. Ra2 {[%clk 0:00:13]}  Rc1 {[%clk 0:00:03]} 58. Re2 {[%clk 0:00:12]}  Rb1 {[%clk 0:00:03]} 59. Rc2 {[%clk 0:00:12]}  Ra1 {[%clk 0:00:03]} 60. Rb2 {[%clk 0:00:12]}  Rc1 {[%clk 0:00:03]} 61. g4 {[%clk 0:00:12]}  hxg3+ {[%clk 0:00:03]} 62. Nxg3 {[%clk 0:00:13]}  Nd4 {[%clk 0:00:02]} 63. Kg2 {[%clk 0:00:11]}  Rc3 {[%clk 0:00:02]} 64. Ne2 {[%clk 0:00:09]}  Nxe2 {[%clk 0:00:01]} 65. Rxe2 {[%clk 0:00:10]}  Kf7 {[%clk 0:00:02]} 66. h4 {[%clk 0:00:07]}  Kf6 {[%clk 0:00:02]} 67. Re5 {[%clk 0:00:08]}  Rc2+ {[%clk 0:00:02]} 68. Kg3 {[%clk 0:00:08]}  Rc1 {[%clk 0:00:03]} 69. Ra5 {[%clk 0:00:09]}  Rg1+ {[%clk 0:00:03]} 70. Kh2 {[%clk 0:00:09]}  Rf1 {[%clk 0:00:04]} 71. Kg2 {[%clk 0:00:09]}  Rb1 {[%clk 0:00:04]} 72. Rg5 {[%clk 0:00:10]}  Rb4 {[%clk 0:00:03]} 73. Kg3 {[%clk 0:00:09]}  Ra4 {[%clk 0:00:04]} 74. Rb5 {[%clk 0:00:09]}  Rc4 {[%clk 0:00:04]} 75. Rb1 {[%clk 0:00:09]}  Ra4 {[%clk 0:00:04]} 76. Kg4 {[%clk 0:00:09]}  Rc4 {[%clk 0:00:04]} 77. Rb6+ {[%clk 0:00:09]}  Kf7 {[%clk 0:00:05]} 78. Rb5 {[%clk 0:00:09]}  Kf6 {[%clk 0:00:05]} 79. Ra5 {[%clk 0:00:10]}  Rb4 {[%clk 0:00:05]} 80. Ra6+ {[%clk 0:00:10]}  Kf7 {[%clk 0:00:05]} 81. Rd6 {[%clk 0:00:11]}  Ra4 {[%clk 0:00:05]} 82. Rd7+ {[%clk 0:00:07]}  Kf6 {[%clk 0:00:05]} 83. Rd8 {[%clk 0:00:08]}  Rb4 {[%clk 0:00:05]} 84. Rf8+ {[%clk 0:00:08]}  Ke7 {[%clk 0:00:05]} 85. Ra8 {[%clk 0:00:06]}  Kf6 {[%clk 0:00:06]} 86. Ra5 {[%clk 0:00:05]}  Rc4 {[%clk 0:00:06]} 87. Kg3 {[%clk 0:00:05]}  Rb4 {[%clk 0:00:06]} 88. f5 {[%clk 0:00:06]}  gxf5 {[%clk 0:00:03]} 89. Ra6+ {[%clk 0:00:06]}  Kf7 {[%clk 0:00:03]} 90. h5 {[%clk 0:00:06]}  Kg7 {[%clk 0:00:04]} 91. Rg6+ {[%clk 0:00:06]}  Kh7 {[%clk 0:00:04]} 92. Rg5 {[%clk 0:00:06]}  Kh6 {[%clk 0:00:04]} 93. Rxf5 {[%clk 0:00:06]}  Ra4 {[%clk 0:00:04]} 94. Rd5 {[%clk 0:00:06]}  Rb4 {[%clk 0:00:05]} 95. Re5 {[%clk 0:00:05]}  Ra4 {[%clk 0:00:05]} 96. Re4 {[%clk 0:00:05]}  Ra5 {[%clk 0:00:03]} 97. Kg4 {[%clk 0:00:02]}  Rg5+ {[%clk 0:00:03]} 98. Kf4 {[%clk 0:00:03]}  Rxh5 {[%clk 0:00:03]} 99. Re5 {[%clk 0:00:03]}  Rh1 {[%clk 0:00:02]} 100. Rg5 {[%clk 0:00:03]}  Ra1 {[%clk 0:00:02]} 101. Rg8 {[%clk 0:00:03]}  Ra4+ {[%clk 0:00:02]} 102. Kg3 {[%clk 0:00:03]}  Ra3 {[%clk 0:00:02]} 103. Kg4 {[%clk 0:00:03]}  Ra4+ {[%clk 0:00:02]} 104. f4 {[%clk 0:00:03]}  Kh7 {[%clk 0:00:03]} 105. Rg5 {[%clk 0:00:03]}  Kh6 {[%clk 0:00:04]} 106. Rg8 {[%clk 0:00:03]}  Kh7 {[%clk 0:00:04]} 107. Rc8 {[%clk 0:00:03]}  Kg7 {[%clk 0:00:02]} 108. Rc7+ {[%clk 0:00:03]}  Kg6 {[%clk 0:00:02]} 109. Rc6+ {[%clk 0:00:03]}  Kg7 {[%clk 0:00:03]} 110. Kg5 {[%clk 0:00:04]}  Ra7 {[%clk 0:00:03]} 111. f5 {[%clk 0:00:04]}  Rb7 {[%clk 0:00:02]} 112. Rh6 {[%clk 0:00:03]}  Ra7 {[%clk 0:00:02]} 113. Rg6+ {[%clk 0:00:03]}  Kf7 {[%clk 0:00:03]} 114. Rd6 {[%clk 0:00:03]}  Kg7 {[%clk 0:00:03]} 115. Rb6 {[%clk 0:00:04]}  Kf7 {[%clk 0:00:03]} 116. Rh6 {[%clk 0:00:03]}  Kg7 {[%clk 0:00:04]} 117. Rh3 {[%clk 0:00:04]}  Rb7 {[%clk 0:00:04]} 118. Rd3 {[%clk 0:00:04]}  Ra7 {[%clk 0:00:04]} 119. Rb3 {[%clk 0:00:05]}  Rc7 {[%clk 0:00:04]} 120. Rb6 {[%clk 0:00:05]}  Ra7 {[%clk 0:00:04]} 121. Rh6 {[%clk 0:00:04]}  Rc7 {[%clk 0:00:04]} 122. f6+ {[%clk 0:00:04]}  Kg8 {[%clk 0:00:04]} 123. Kg6 {[%clk 0:00:04]}  Rg7+ {[%clk 0:00:04]} 124. Kf5 {[%clk 0:00:05]}  Ra7 {[%clk 0:00:05]} 125. Rg6+ {[%clk 0:00:04]}  Kf8 {[%clk 0:00:05]} 126. Rh6 {[%clk 0:00:05]}  Ra1 {[%clk 0:00:03]} 127. Rh8+ {[%clk 0:00:05]}  Kf7 {[%clk 0:00:04]} 128. Rh7+ {[%clk 0:00:05]}  Kf8 {[%clk 0:00:04]} 129. Rh5 {[%clk 0:00:05]}  Ra5+ {[%clk 0:00:04]} 130. Kg6 {[%clk 0:00:06]}  Rxh5 {[%clk 0:00:04]} 131. Kxh5 {[%clk 0:00:06]}  Kf7 {[%clk 0:00:05]} 132. Kg5 {[%clk 0:00:07]}  Kf8 {[%clk 0:00:06]} 133. Kf4 {[%clk 0:00:08]}  Kf7 {[%clk 0:00:05]} 134. Ke5 {[%clk 0:00:09]}  Kf8 {[%clk 0:00:06]} 135. Ke6 {[%clk 0:00:10]}  Ke8 {[%clk 0:00:06]} 136. f7+ {[%clk 0:00:11]}  Kf8 {[%clk 0:00:07]} 137. Kd7 {[%clk 0:00:11]}  Kxf7 {[%clk 0:00:07]} 1/2-1/2


[Site "https://www.chess.com"]

[Event "Titled Tuesday Blitz June 14 Early 2022"]
[White "Siniauski, Artsiom"]
[Black "Suleymanli, Aydin"]
[WhiteFideId "13512269"]
[BlackFideId "13413937"]
[WhiteElo "2187"]
[BlackElo "2481"]
[Result "1/2-1/2"]
[Round "02"]
[TimeControl "180+1"]
[Date "2022.06.14"]
[WhiteClock "0:00:08"]
[BlackClock "0:00:10"]

1. e4 {[%clk 0:03:00]}  e5 {[%clk 0:02:55]} 2. Nf3 {[%clk 0:03:01]}  Nc6 {[%clk 0:02:55]} 3. Bb5 {[%clk 0:03:01]}  a6 {[%clk 0:02:52]} 4. Ba4 {[%clk 0:03:01]}  Nf6 {[%clk 0:02:52]} 5. O-O {[%clk 0:03:02]}  Nxe4 {[%clk 0:02:39]} 6. d4 {[%clk 0:03:01]}  b5 {[%clk 0:02:38]} 7. Bb3 {[%clk 0:03:01]}  d5 {[%clk 0:02:39]} 8. dxe5 {[%clk 0:03:02]}  Be6 {[%clk 0:02:39]} 9. Nbd2 {[%clk 0:03:02]}  Nc5 {[%clk 0:02:27]} 10. c3 {[%clk 0:02:58]}  d4 {[%clk 0:02:26]} 11. cxd4 {[%clk 0:02:53]}  Nxd4 {[%clk 0:02:26]} 12. Nxd4 {[%clk 0:02:51]}  Qxd4 {[%clk 0:02:26]} 13. Bxe6 {[%clk 0:02:47]}  fxe6 {[%clk 0:02:16]} 14. Nb3 {[%clk 0:02:42]}  Qxd1 {[%clk 0:02:04]} 15. Rxd1 {[%clk 0:02:43]}  Na4 {[%clk 0:02:04]} 16. Nd4 {[%clk 0:02:32]}  Kf7 {[%clk 0:01:47]} 17. b3 {[%clk 0:02:27]}  Nc3 {[%clk 0:01:44]} 18. Rd3 {[%clk 0:02:25]}  Rd8 {[%clk 0:01:16]} 19. Rxc3 {[%clk 0:02:20]}  c5 {[%clk 0:01:12]} 20. Rf3+ {[%clk 0:02:06]}  Kg6 {[%clk 0:00:46]} 21. Rg3+ {[%clk 0:01:24]}  Kf7 {[%clk 0:00:44]} 22. Bb2 {[%clk 0:01:21]}  cxd4 {[%clk 0:00:43]} 23. Rd1 {[%clk 0:01:22]}  Bc5 {[%clk 0:00:41]} 24. Kf1 {[%clk 0:01:08]}  Rd5 {[%clk 0:00:35]} 25. f4 {[%clk 0:01:08]}  h6 {[%clk 0:00:36]} 26. Ke2 {[%clk 0:01:07]}  g5 {[%clk 0:00:35]} 27. Rf3 {[%clk 0:01:03]}  Ke7 {[%clk 0:00:27]} 28. g3 {[%clk 0:00:57]}  gxf4 {[%clk 0:00:25]} 29. gxf4 {[%clk 0:00:58]}  Rg8 {[%clk 0:00:25]} 30. Rg3 {[%clk 0:00:57]}  Rf8 {[%clk 0:00:20]} 31. Kf3 {[%clk 0:00:47]}  Rxe5 {[%clk 0:00:11]} 32. Bxd4 {[%clk 0:00:42]}  Bxd4 {[%clk 0:00:11]} 33. Rxd4 {[%clk 0:00:43]}  Ref5 {[%clk 0:00:12]} 34. Rg7+ {[%clk 0:00:42]}  R8f7 {[%clk 0:00:09]} 35. Rxf7+ {[%clk 0:00:40]}  Rxf7 {[%clk 0:00:10]} 36. Ke4 {[%clk 0:00:41]}  Rf5 {[%clk 0:00:10]} 37. Rd2 {[%clk 0:00:39]}  Rh5 {[%clk 0:00:10]} 38. Rc2 {[%clk 0:00:39]}  Kf6 {[%clk 0:00:10]} 39. b4 {[%clk 0:00:35]}  Rh3 {[%clk 0:00:09]} 40. Rc6 {[%clk 0:00:27]}  Rxh2 {[%clk 0:00:07]} 41. Rxa6 {[%clk 0:00:28]}  Rb2 {[%clk 0:00:07]} 42. a3 {[%clk 0:00:26]}  Rb1 {[%clk 0:00:07]} 43. Rb6 {[%clk 0:00:24]}  Ra1 {[%clk 0:00:07]} 44. Rxb5 {[%clk 0:00:17]}  Rxa3 {[%clk 0:00:06]} 45. Rh5 {[%clk 0:00:18]}  Kg6 {[%clk 0:00:06]} 46. Ra5 {[%clk 0:00:14]}  Rb3 {[%clk 0:00:06]} 47. b5 {[%clk 0:00:14]}  h5 {[%clk 0:00:06]} 48. Ra6 {[%clk 0:00:07]}  Kf6 {[%clk 0:00:06]} 49. b6 {[%clk 0:00:06]}  h4 {[%clk 0:00:06]} 50. Ra7 {[%clk 0:00:04]}  Rxb6 {[%clk 0:00:06]} 51. Rh7 {[%clk 0:00:05]}  Rb4+ {[%clk 0:00:06]} 52. Kf3 {[%clk 0:00:05]}  e5 {[%clk 0:00:07]} 53. fxe5+ {[%clk 0:00:05]}  Kxe5 {[%clk 0:00:07]} 54. Kg2 {[%clk 0:00:05]}  Kf5 {[%clk 0:00:07]} 55. Kh3 {[%clk 0:00:06]}  Kg5 {[%clk 0:00:07]} 56. Rg7+ {[%clk 0:00:06]}  Kh5 {[%clk 0:00:07]} 57. Rh7+ {[%clk 0:00:06]}  Kg5 {[%clk 0:00:08]} 58. Rg7+ {[%clk 0:00:07]}  Kh6 {[%clk 0:00:09]} 59. Rg4 {[%clk 0:00:07]}  Rxg4 {[%clk 0:00:09]} 60. Kxg4 {[%clk 0:00:08]}  h3 {[%clk 0:00:10]} 61. Kxh3 {[%clk 0:00:08]} 1/2-1/2


[Site "https://www.chess.com"]

[Event "Titled Tuesday Blitz June 14 Early 2022"]
[White "Talibov, Shiroghlan"]
[Black "Terry, Renato"]
[WhiteFideId "13429078"]
[BlackFideId "3803457"]
[WhiteElo "2042"]
[BlackElo "2577"]
[Result "0-1"]
[Round "02"]
[TimeControl "180+1"]
[Date "2022.06.14"]
[WhiteClock "0:01:26"]
[BlackClock "0:02:03"]

1. c4 {[%clk 0:03:00]}  e5 {[%clk 0:02:56]} 2. Nc3 {[%clk 0:03:00]}  Nc6 {[%clk 0:02:54]} 3. Nf3 {[%clk 0:03:00]}  f5 {[%clk 0:02:54]} 4. d4 {[%clk 0:02:57]}  e4 {[%clk 0:02:54]} 5. d5 {[%clk 0:02:57]}  exf3 {[%clk 0:02:53]} 6. dxc6 {[%clk 0:02:57]}  fxg2 {[%clk 0:02:51]} 7. cxd7+ {[%clk 0:02:57]}  Qxd7 {[%clk 0:02:52]} 8. Qxd7+ {[%clk 0:02:56]}  Bxd7 {[%clk 0:02:53]} 9. Bxg2 {[%clk 0:02:57]}  O-O-O {[%clk 0:02:52]} 10. Bf4 {[%clk 0:02:55]}  c6 {[%clk 0:02:38]} 11. O-O-O {[%clk 0:02:48]}  Nf6 {[%clk 0:02:38]} 12. Bf3 {[%clk 0:02:42]}  Be7 {[%clk 0:02:33]} 13. Rhg1 {[%clk 0:02:41]}  g6 {[%clk 0:02:33]} 14. Bd6 {[%clk 0:02:39]}  Rhe8 {[%clk 0:02:29]} 15. Bxe7 {[%clk 0:02:32]}  Rxe7 {[%clk 0:02:30]} 16. Rd6 {[%clk 0:02:31]}  Be6 {[%clk 0:02:30]} 17. Rxd8+ {[%clk 0:02:31]}  Kxd8 {[%clk 0:02:31]} 18. b3 {[%clk 0:02:31]}  f4 {[%clk 0:02:24]} 19. Ne4 {[%clk 0:02:05]}  Nxe4 {[%clk 0:02:20]} 20. Bxe4 {[%clk 0:02:01]}  Bxc4 {[%clk 0:02:20]} 21. Bxg6 {[%clk 0:01:47]}  hxg6 {[%clk 0:02:16]} 22. bxc4 {[%clk 0:01:46]}  Rxe2 {[%clk 0:02:17]} 23. Rxg6 {[%clk 0:01:46]}  Rxf2 {[%clk 0:02:16]} 24. h4 {[%clk 0:01:38]}  Rxa2 {[%clk 0:02:09]} 25. Rg4 {[%clk 0:01:34]}  f3 {[%clk 0:02:07]} 26. Rf4 {[%clk 0:01:34]}  f2 {[%clk 0:02:05]} 27. Kd1 {[%clk 0:01:28]}  Ke7 {[%clk 0:02:04]} 28. h5 {[%clk 0:01:26]}  f1=Q+ {[%clk 0:02:02]} 29. Rxf1 {[%clk 0:01:26]}  Ra1+ {[%clk 0:02:03]} 0-1


[Site "https://www.chess.com"]

[Event "Titled Tuesday Blitz June 14 Early 2022"]
[White "Zhigalko, Sergei"]
[Black "Prokofiev, Valentyn"]
[WhiteFideId "13502956"]
[BlackFideId "14160161"]
[WhiteElo "2662"]
[BlackElo "2142"]
[Result "1-0"]
[Round "02"]
[TimeControl "180+1"]
[Date "2022.06.14"]
[WhiteClock "0:00:52"]
[BlackClock "0:00:47"]

1. e4 {[%clk 0:03:00]}  e5 {[%clk 0:03:00]} 2. Nf3 {[%clk 0:02:59]}  Nc6 {[%clk 0:03:01]} 3. Bc4 {[%clk 0:03:00]}  Bc5 {[%clk 0:03:01]} 4. b4 {[%clk 0:03:00]}  Bxb4 {[%clk 0:03:01]} 5. c3 {[%clk 0:03:00]}  Be7 {[%clk 0:02:57]} 6. d4 {[%clk 0:03:00]}  Na5 {[%clk 0:02:54]} 7. Bd3 {[%clk 0:03:00]}  d6 {[%clk 0:02:53]} 8. dxe5 {[%clk 0:03:01]}  dxe5 {[%clk 0:02:53]} 9. Nxe5 {[%clk 0:03:01]}  Nf6 {[%clk 0:02:51]} 10. O-O {[%clk 0:03:01]}  O-O {[%clk 0:02:51]} 11. Qc2 {[%clk 0:03:01]}  c5 {[%clk 0:02:49]} 12. Nd2 {[%clk 0:03:01]}  Qc7 {[%clk 0:02:47]} 13. f4 {[%clk 0:02:51]}  Rd8 {[%clk 0:02:40]} 14. c4 {[%clk 0:02:28]}  b6 {[%clk 0:02:31]} 15. Bb2 {[%clk 0:02:25]}  Bb7 {[%clk 0:02:32]} 16. Rae1 {[%clk 0:02:19]}  Nc6 {[%clk 0:02:30]} 17. Nxc6 {[%clk 0:02:00]}  Qxc6 {[%clk 0:02:31]} 18. Nf3 {[%clk 0:02:00]}  h6 {[%clk 0:01:53]} 19. e5 {[%clk 0:01:45]}  Nh5 {[%clk 0:01:49]} 20. Bh7+ {[%clk 0:01:22]}  Kh8 {[%clk 0:01:48]} 21. Be4 {[%clk 0:01:22]}  Qc7 {[%clk 0:01:48]} 22. Bxb7 {[%clk 0:01:10]}  Qxb7 {[%clk 0:01:49]} 23. Qf5 {[%clk 0:01:07]}  Kg8 {[%clk 0:00:58]} 24. Qxh5 {[%clk 0:01:05]}  Qa6 {[%clk 0:00:58]} 25. e6 {[%clk 0:01:00]}  Rf8 {[%clk 0:00:50]} 26. exf7+ {[%clk 0:00:55]}  Rxf7 {[%clk 0:00:51]} 27. Ne5 {[%clk 0:00:56]}  Rf6 {[%clk 0:00:47]} 28. Ng6 {[%clk 0:00:52]} 1-0


[Site "https://www.chess.com"]

[Event "Titled Tuesday Blitz June 14 Early 2022"]
[White "Andreikin, Dmitry"]
[Black "Petrovskyi, Vadym"]
[WhiteFideId "4158814"]
[BlackFideId "14165210"]
[WhiteElo "2736"]
[BlackElo "2396"]
[Result "0-1"]
[Round "03"]
[TimeControl "180+1"]
[Date "2022.06.14"]
[WhiteClock "0:00:34"]
[BlackClock "0:00:13"]

1. e4 {[%clk 0:03:00]}  c5 {[%clk 0:02:59]} 2. Nc3 {[%clk 0:03:00]}  d6 {[%clk 0:02:59]} 3. Nge2 {[%clk 0:02:59]}  Nf6 {[%clk 0:02:59]} 4. h3 {[%clk 0:02:59]}  Nc6 {[%clk 0:02:53]} 5. g4 {[%clk 0:02:59]}  e5 {[%clk 0:02:49]} 6. Bg2 {[%clk 0:02:58]}  h6 {[%clk 0:02:49]} 7. d3 {[%clk 0:02:58]}  Be7 {[%clk 0:02:49]} 8. Ng3 {[%clk 0:02:55]}  Nd4 {[%clk 0:02:48]} 9. Nf5 {[%clk 0:02:52]}  Bf8 {[%clk 0:02:42]} 10. Bd2 {[%clk 0:02:46]}  g6 {[%clk 0:02:39]} 11. Ne3 {[%clk 0:02:46]}  Be6 {[%clk 0:02:37]} 12. Ncd5 {[%clk 0:02:46]}  Bg7 {[%clk 0:02:20]} 13. c3 {[%clk 0:02:46]}  Nc6 {[%clk 0:02:20]} 14. Qf3 {[%clk 0:02:46]}  b5 {[%clk 0:02:14]} 15. O-O-O {[%clk 0:02:38]}  b4 {[%clk 0:02:11]} 16. Nc4 {[%clk 0:02:16]}  bxc3 {[%clk 0:02:07]} 17. Bxc3 {[%clk 0:02:17]}  O-O {[%clk 0:02:03]} 18. Nxd6 {[%clk 0:02:03]}  Qxd6 {[%clk 0:01:27]} 19. Nxf6+ {[%clk 0:02:03]}  Kh8 {[%clk 0:01:28]} 20. Nd5 {[%clk 0:01:57]}  Rfb8 {[%clk 0:01:21]} 21. Kb1 {[%clk 0:01:53]}  a5 {[%clk 0:01:16]} 22. Rc1 {[%clk 0:01:50]}  a4 {[%clk 0:01:13]} 23. Rc2 {[%clk 0:01:51]}  Rb7 {[%clk 0:00:56]} 24. Ka1 {[%clk 0:01:48]}  Nb4 {[%clk 0:00:51]} 25. Rhc1 {[%clk 0:01:28]}  Nxc2+ {[%clk 0:00:47]} 26. Rxc2 {[%clk 0:01:28]}  a3 {[%clk 0:00:45]} 27. b3 {[%clk 0:01:26]}  Rf8 {[%clk 0:00:43]} 28. Kb1 {[%clk 0:01:22]}  f5 {[%clk 0:00:40]} 29. gxf5 {[%clk 0:01:17]}  gxf5 {[%clk 0:00:41]} 30. Ne3 {[%clk 0:01:17]}  Qxd3 {[%clk 0:00:35]} 31. exf5 {[%clk 0:01:14]}  Bxb3 {[%clk 0:00:24]} 32. Qxb7 {[%clk 0:00:39]}  Bxc2+ {[%clk 0:00:23]} 33. Kc1 {[%clk 0:00:40]}  Qxc3 {[%clk 0:00:15]} 34. Nxc2 {[%clk 0:00:38]}  e4 {[%clk 0:00:15]} 35. Bxe4 {[%clk 0:00:34]}  Rd8 {[%clk 0:00:14]} 36. f6 {[%clk 0:00:33]}  Qd2+ {[%clk 0:00:12]} 37. Kb1 {[%clk 0:00:34]}  Qd1# {[%clk 0:00:13]} 0-1


[Site "https://www.chess.com"]